Cogmind - Beta 12 @@@ ROGUE MODE // 2024.02.17 @ 09:06:40 Player: Dosh Result: Heading to fleet! Performance ------------- Evolutions (9) 4500 Regions Visited (24) 4800 Robots Destroyed (514) 2570 Value Destroyed (22697) 22697 Prototype IDs (249) 4980 Alien Tech Used (6) 1200 Bonus (22672) 22672 TOTAL SCORE: 63419 Bonus ------- High Alert Combat Kills 2954 Follower Combat Kills 1554 Aligned with FarCom 300 Met Data Miner 300 Used Data Conduit 3000 Met Zhirov 300 Found Hidden Lab 3000 Decrypted A0 Command 3000 Used Core Reset Matrix 3000 Pursued by Intercept 2500 Win 3000 Friendly Fire -236 Cogmind --------- Core Integrity 939/1600 Matter 178/300 Energy 103/700 System Corruption 0% Temperature Cool (0) Movement Core (50) Location To Fleet Rendezvous Parts ------- > --- POWER (2) -------- (None) > --- PROPULSION (8) --- Centrium Leg Centrium Leg > --- UTILITY (13) ----- Experimental Energy Well Enhanced Optical Array Improved Melee Analysis Suite Advanced Hacking Suite Quantum Router > --- WEAPON (2) ------- (None) > --- INVENTORY (5) ---- Enhanced Nova Cannon Potential Cannon Smartbomb Launcher Peak State ------------ > --- POWER ------------ Cooled Antimatter Reactor Light Quantum Reactor > --- PROPULSION ------- Enhanced Biometal Leg Centrium Leg Centrium Leg Centrium Leg Centrium Leg Centrium Leg > --- UTILITY ---------- Huge Storage Unit Improved Melee Analysis Suite Nanoactuators Nanoactuators Advanced Transmission Jammer Improved Phase Shifter Centrium Medium Armor Plating Advanced Hacking Suite Experimental Hacking Suite Deep Network Scanner Quantum Router Assault Drone Bay > --- WEAPON ----------- Enhanced Nova Cannon Hellfire Missile Launcher > --- INVENTORY -------- Light Antimatter Reactor Light Antimatter Reactor Biometal Leg Biometal Leg Biometal Leg Centrium Leg Centrium Leg Experimental Power Amplifier Experimental Energy Well Structural Scanner Enhanced Optical Array Experimental Melee Analysis Suite Advanced Weapon Cycler Assault Drone Bay Transdimensional Reconstructor Core Reset Matrix Heavy Phase Cannon Potential Cannon Smartbomb Launcher Longsword +1 [Rating: 200] Favorites ----------- Power Heavy Ion Engine Engine Heavy Ion Engine Power Core Micro Nuclear Core Reactor Cooled Antimatter Reactor Propulsion Medium Treads Treads Medium Treads Leg Centrium Leg Flight Unit Improved Flight Unit Utility Hacking Suite Device Microactuators Storage High-capacity Storage Unit Processor Improved Melee Analysis Suite Hackware Hacking Suite Protection Improved Medium Armor Plating Artifact LC Capacitor Weapon Heavy Assault Rifle Energy Gun EM Shotgun Energy Cannon Light EM Pulse Cannon Ballistic Gun Heavy Assault Rifle Ballistic Cannon Assault Cannon Launcher Missile Launcher Special Weapon Guided Remote Datajack Slashing Weapon Longsword +1 Build | -11 -10 -10 -9 -9 -9 -8 -8 -7 -7 -7 -7 -6 -6 -5 -5 -5 -5 -4 -4 -4 -4 -3 -2 -1 ------- Run | Jun Mat Min Mat Min Exi Min Mat Fac Low Low Dat Pro Fac Fac Upp Upp Zhi Pro Fac Arm Lab Res Res Acc Slots Evolved 18 | . . . 2 . . . 2 2 . . . . 2 2 . . . . 2 . . 2 2 2 Power 1 | . . . . . . . . . . . . . . 1 . . . . . . . . . . Propulsion 6 | . . . . . . . 1 1 . . . . . . . . . . 2 . . . . 2 Utility 11 | . . . 2 . . . 1 1 . . . . 2 1 . . . . . . . 2 2 . Weapon . | . . . . . . . . . . . . . . . . . . . . . . . . . Parts Attached 453 | 7 10 3 35 1 . 3 21 51 4 8 19 12 68 35 4 . 1 11 39 9 14 51 33 14 Power 47 | 1 2 . 3 . . . 1 4 . . 1 . 8 6 1 . . 3 4 1 1 4 5 2 Engine 12 | 1 2 . 3 . . . 1 2 . . . . 1 . 1 . . 1 . . . . . . Core 12 | . . . . . . . . 2 . . . . 4 6 . . . . . . . . . . Reactor 23 | . . . . . . . . . . . 1 . 3 . . . . 2 4 1 1 4 5 2 Propulsion 92 | 2 2 . 8 . . . 5 7 1 1 1 3 16 3 . . . 6 12 4 . 14 5 2 Treads 33 | 2 2 . 7 . . . 5 7 1 1 1 . 3 3 . . . . . 1 . . . . Leg 58 | . . . . . . . . . . . . 3 13 . . . . 6 12 3 . 14 5 2 Wheel . | . . . . . . . . . . . . . . . . . . . . . . . . . Hover . | . . . . . . . . . . . . . . . . . . . . . . . . . Flight 1 | . . . 1 . . . . . . . . . . . . . . . . . . . . . Utility 177 | 2 2 1 11 1 . 2 7 18 . . 14 4 27 19 3 . 1 1 15 3 10 24 7 5 Device 79 | 1 . . . . . . 2 6 . . 7 4 11 10 . . 1 1 5 2 5 15 6 3 Storage 10 | 1 1 . 2 . . . . . . . . . . 1 . . . . 3 . 1 . . 1 Processor 10 | . . . . . . . . 2 . . 1 . 3 2 . . . . 1 . . . . 1 Hackware 18 | . . . 1 . . . . 2 . . . . 4 1 . . . . 3 1 . 6 . . Protection 59 | . 1 1 8 1 . 2 5 8 . . 6 . 9 5 3 . . . 3 . 3 3 1 . Artifact 1 | . . . . . . . . . . . . . . . . . . . . . 1 . . . Weapon 137 | 2 4 2 13 . . 1 8 22 3 7 3 5 17 7 . . . 1 8 1 3 9 16 5 Energy Gun 9 | . 2 1 3 . . . 1 . . . . . . . . . . . 1 . 1 . . . Energy Cannon 30 | . . . 1 . . . 3 2 1 3 . . . . . . . 1 1 1 1 3 9 4 Ballistic Gun 31 | 2 1 . 7 . . 1 2 6 . 1 1 2 8 . . . . . . . . . . . Ballistic Cannon 6 | . . . . . . . . 6 . . . . . . . . . . . . . . . . Launcher 34 | . 1 1 2 . . . 2 2 2 3 1 1 4 3 . . . . 3 . . 3 5 1 Special Weapon 1 | . . . . . . . . . . . . . . . . . . . . . 1 . . . Impact Weapon . | . . . . . . . . . . . . . . . . . . . . . . . . . Slashing Weapon 26 | . . . . . . . . 6 . . 1 2 5 4 . . . . 3 . . 3 2 . Piercing Weapon . | . . . . . . . . . . . . . . . . . . . . . . . . . Special Melee Weapon . | . . . . . . . . . . . . . . . . . . . . . . . . . Unidentified Prototypes 22 | . . . 3 . . . . 2 . . . . 1 . . . 1 . 3 1 7 2 1 1 Corrupted Parts 1 | . . . . . . . . . . . . 1 . . . . . . . . . . . . System Corruption 4 | . . . . . . . . . . . . 4 . . . . . . . . . . . . Parts Lost 111 | . . 1 6 . . 3 1 4 . 1 . 1 24 9 1 . . 11 16 . 1 10 7 15 Power 16 | . . . . . . . . . . . . . 2 2 . . . 2 4 . . 2 1 3 Propulsion 33 | . . . . . . . . . . . . 1 10 1 . . . 3 8 . . 3 1 6 Utility 53 | . . 1 3 . . 2 . 3 . 1 . . 10 6 1 . . 6 4 . 1 5 4 6 Weapon 9 | . . . 3 . . 1 1 1 . . . . 2 . . . . . . . . . 1 . Highest Loss Streak 12 | . . 1 2 . . 2 1 2 . 1 . 1 12 4 1 . . 10 8 . 1 6 4 12 To Critical Strikes 2 | . . . . . . . . . . . . . . 1 . . . . . . . . . 1 Average Slot Usage (%) 92 | . 99 99 98 99 100 99 91 96 100 98 90 93 88 80 81 82 81 71 86 64 87 90 87 75 Engine 5 | . 13 14 11 11 11 11 9 5 . . . . . . . 5 5 2 4 . . . . . Core 1 | . . . . . . . . 1 7 7 2 . 2 8 10 5 5 2 . . . . . . Reactor 2 | . . . . . . . . . . . 4 7 1 1 . . . 1 5 2 8 8 7 6 Treads 16 | . 27 28 21 22 22 22 27 29 30 29 30 24 3 10 11 11 11 6 . . 5 . . . Leg 7 | . . . . . . . . . . . . . 18 . . . . 9 29 16 21 27 25 27 Device 6 | . 2 . . . . . 8 2 15 15 14 15 6 10 11 11 10 8 8 2 13 11 16 13 Storage 7 | . 14 14 11 11 11 11 9 7 7 7 7 7 6 5 5 5 5 5 5 5 5 4 4 7 Processor 4 | . . . . . . . . 5 7 7 7 7 6 11 11 11 11 8 5 10 10 4 4 7 Hackware 10 | . . . 11 11 11 11 9 14 . . . . 16 9 5 5 5 2 14 10 11 18 16 8 Protection 13 | . 11 13 20 21 22 22 10 11 15 13 14 15 11 11 16 17 17 12 5 8 4 8 2 . Energy Gun 1 | . 11 24 5 . . . . . . . . . . . . . . . . . . . . . Energy Cannon 1 | . . . 2 . . . 7 1 6 5 . . . . . . . . . 1 . . 6 3 Ballistic Gun 7 | . 16 . 14 22 22 21 9 9 7 6 . 7 5 . . . . . . . . . . . Slashing Weapon 1 | . . . . . . . . . . . 5 1 3 4 5 5 5 5 4 5 4 3 . . Naked Turns . | . . . . . . . . . . . . . . . . . . . . . . . . . Heaviest Build 175 | 12 37 38 108 60 60 60 74 81 76 78 86 86 86 117 120 120 120 123 125 79 165 175 163 144 Greatest Support 240 | 40 40 40 46 46 46 46 76 112 112 112 112 112 140 140 140 140 140 140 128 95 95 176 180 240 Greatest Overweight (x) 2 | . . . 2 1 1 1 1 . . . . 1 1 . . . . 2 1 1 1 1 . . Average Overweight (x) . | . . . 1 1 1 1 . . . . . . . . . . . . . . . . . . Largest Inventory Capacity 25 | 8 15 15 25 20 20 20 20 20 20 20 20 20 20 25 25 25 25 25 25 20 25 25 25 25 Average Capacity 20 | 7 10 15 22 20 20 20 20 20 20 20 20 20 20 23 25 25 25 25 20 20 20 25 25 22 Most Carried 25 | 2 11 12 25 19 20 20 20 20 20 20 20 20 20 25 25 25 25 25 21 20 25 25 25 24 Average Carried 18 | 1 7 11 17 18 19 18 19 19 20 20 19 19 17 19 24 25 24 23 18 19 20 23 21 16 Final Capacity 25 | 8 15 15 20 20 20 20 20 20 20 20 20 20 20 25 25 25 25 25 20 20 25 25 25 5 Final Carried 25 | 2 11 11 18 19 20 17 20 20 20 20 19 19 18 25 25 25 25 22 19 19 23 20 24 5 Class Distribution -------------------- 41% | Mutant 29% | Hacker-Mutant 16% | Scavenger-Mutant 10% | Wizard-Mutant Dominant Class ---------------- Mutant | -10/Materials Mutant | -10/Mines Scavenger-Mutant | -9/Materials Mutant | -9/Mines Mutant | -9/Exiles Scavenger-Mutant | -8/Mines Mutant | -8/Materials Hacker-Mutant | -7/Factory Mutant | -7/Lower Caves Mutant | -7/Lower Caves Mutant | -7/Data Miner Mutant | -6/Proximity Caves Hacker-Mutant | -6/Factory Hacker-Mutant | -5/Factory Scavenger-Mutant | -5/Upper Caves Scavenger-Mutant | -5/Upper Caves Scavenger-Mutant | -5/Zhirov Scavenger-Mutant | -4/Proximity Caves Hacker-Mutant | -4/Factory Hacker-Mutant | -4/Armory Hacker-Mutant | -4/Lab Wizard-Mutant | -3/Research Wizard-Mutant | -2/Research Hacker-Skirmisher | -1/Access Resources | -11 -10 -10 -9 -9 -9 -8 -8 -7 -7 -7 -7 -6 -6 -5 -5 -5 -5 -4 -4 -4 -4 -3 -2 -1 ----------- Run | Jun Mat Min Mat Min Exi Min Mat Fac Low Low Dat Pro Fac Fac Upp Upp Zhi Pro Fac Arm Lab Res Res Acc Matter Collected 9188 | 238 450 72 862 168 . 173 469 1336 213 319 190 239 1096 448 124 23 . 213 539 45 83 1101 602 185 Remotely . | . . . . . . . . . . . . . . . . . . . . . . . . . Salvage Created 21303 | 20 1136 20 2283 244 . 260 1647 1935 192 365 307 411 2378 2744 446 . . 767 1458 55 83 3275 635 642 Parts 1053 | 4 78 . 164 31 . 12 91 121 10 16 14 18 104 94 19 . . 21 71 3 6 126 22 28 Haulers Intercepted 17 | . 2 . 6 . . . 5 2 . . . . . . . . . . . . . 1 . 1 Recyclers Shooed 6 | . . . . . . . . . . . . . 1 . . . . . . . . 3 1 1 Parts Field Recycled . | . . . . . . . . . . . . . . . . . . . . . . . . . Retrieved Matter . | . . . . . . . . . . . . . . . . . . . . . . . . . Parts Self-Destructed 77 | . . . . . . . . . 7 12 . 23 . . 17 . . 18 . . . . . . Prevented . | . . . . . . . . . . . . . . . . . . . . . . . . . Kills | -11 -10 -10 -9 -9 -9 -8 -8 -7 -7 -7 -7 -6 -6 -5 -5 -5 -5 -4 -4 -4 -4 -3 -2 -1 ------- Run | Jun Mat Min Mat Min Exi Min Mat Fac Low Low Dat Pro Fac Fac Upp Upp Zhi Pro Fac Arm Lab Res Res Acc Combat Hostiles Destroyed 387 | . 18 10 49 13 . 5 30 34 7 17 3 5 37 43 6 . . 11 33 1 1 41 15 8 Melee 136 | . . . . . . . . . . . 3 4 25 35 6 . . 10 18 1 1 31 2 . Guns 96 | . 14 1 32 13 . 5 6 15 1 2 . . 7 . . . . . . . . . . . Cannons 41 | . . . 6 . . . 12 11 . 1 . . . . . . . . . . . . 7 4 AOE 111 | . 4 9 11 . . . 11 8 6 14 . 1 5 8 . . . . 15 . . 10 6 3 Classes Destroyed 20 | 1 7 2 3 . . 1 1 2 . . . . 1 1 1 . . . . . . . . . Worker 41 | . 3 . 6 . . . 3 7 . . . . 4 5 . . . . 3 . . 3 1 6 Builder 16 | . 2 . . 1 . . . 1 . . . . 2 . . . . . 5 . . 1 1 3 Tunneler 9 | 1 1 . . 2 . . . 2 . . . . 1 1 . . . . . . . 1 . . Hauler 17 | . 2 . 6 . . . 5 2 . . . . . . . . . . . . . 1 . 1 Recycler 21 | . 1 . 2 . . . 1 5 . . . . 2 2 . . . . 1 . . 6 . 1 Mechanic 4 | . . . . . . . . . . . . . . 3 . . . . 1 . . . . . Operator 10 | . 3 . . . . . 2 2 . . . . 2 . . . . . . . . . . 1 Watcher 23 | . 3 . 3 . . . 5 3 . . . 2 2 1 . . . . 2 . . 1 . 1 Swarmer 85 | . . . 11 13 . . 7 11 3 12 . . 7 8 . . . 1 10 . . 2 . . Grunt 151 | . 18 . 29 . . 3 15 14 3 2 . . 9 20 3 . . 7 9 . . 14 2 3 Brawler 4 | . . . . . . . 1 . . . . . . 2 . . . 1 . . . . . . Duelist 9 | . . . . . . . . 1 1 2 . 1 . 1 . . . 1 1 . . . . 1 Protector 1 | . . . 1 . . . . . . . . . . . . . . . . . . . . . Sentry 36 | . . . 8 . . . 7 3 . 1 . 4 4 3 1 . . 1 1 . . 3 . . Demolisher 1 | . . 1 . . . . . . . . . . . . . . . . . . . . . . Specialist 2 | . . . . . . . . . . . . . 2 . . . . . . . . . . . Hunter 16 | . . . . . . 2 . 2 . . . . 1 . 2 . . . 2 . . 4 . 3 Programmer 37 | . . . . . . . . 3 . . . . 6 7 . . . . 6 1 . 8 5 1 Enhanced Grunt 3 | . . . . . . . . . . . 3 . . . . . . . . . . . . . Tracker 15 | . . . . . . . . . . . . . 4 1 . . . . 2 . . 5 3 . Combat Programmer 17 | . . . . . . . . . . . . . 4 1 . . . . 2 . . 5 5 . Decomposer 2 | . . . . . . . . . . . . 2 . . . . . . . . . . . . Samaritan 1 | . . . . . . . . . . . . . . . 1 . . . . . . . . . Assembled 9 | . . 9 . . . . . . . . . . . . . . . . . . . . . . Best Kill Streak 22 | 1 8 9 6 4 . 2 8 8 4 6 2 3 6 12 3 . . 3 22 1 1 15 4 10 Combat Bots Only 15 | . 4 9 5 4 . 2 7 5 4 6 2 3 5 11 3 . . 3 15 1 1 6 3 2 Max Kills in Single Turn 8 | 1 2 3 3 2 . 1 3 8 2 3 1 2 3 5 1 . . 1 5 1 1 4 3 5 Gunslinging 1 | . . . . 1 . . . . . . . . . . . . . . . . . . . . Exploded 4 | . 2 3 2 . . . 3 3 2 3 . 1 2 4 . . . . 4 . . 2 2 1 Melee 1 | . . . . . . . . . . . 1 1 1 1 1 . . 1 1 1 1 1 1 . Uniques/NPCs Destroyed 2 | . . . . . . . . . . . 1 . . . . . . . . . 1 . . . Data Miner (-7/Data Miner) A5 (-4/Lab) Combat | -11 -10 -10 -9 -9 -9 -8 -8 -7 -7 -7 -7 -6 -6 -5 -5 -5 -5 -4 -4 -4 -4 -3 -2 -1 -------- Run | Jun Mat Min Mat Min Exi Min Mat Fac Low Low Dat Pro Fac Fac Upp Upp Zhi Pro Fac Arm Lab Res Res Acc Damage Taken 33581 | . 711 74 1365 358 . 416 905 2190 47 646 230 520 6356 2488 294 . . 1804 3135 197 336 4259 3877 3373 Core 3995 | . 108 22 73 73 . 66 123 281 . 75 . 114 699 203 48 . . 230 469 39 . 404 307 661 Absorbed by Shields 4319 | . . . . . . . 329 185 18 131 . 37 366 625 129 . . 293 650 . . 1556 . . Reduced by Siege Mode 67 | . . . . . . . . . . . . . . . . . . . . . 67 . . . Redirected to Shielding 473 | . . . . . . . . . . . . . 133 73 . . . 16 94 34 23 100 . . Regen/Repaired (Parts) 2408 | . 140 . 242 . . . 156 . . . . . 416 388 . . . . 757 . . 280 29 . Core Remaining (%) 59 | 100 . 48 . . . 47 77 . . . . 32 17 . . . . 51 . . 75 68 78 58 Volleys Fired 698 | 9 82 6 136 20 . 28 94 123 5 18 . 8 43 4 . . . 3 15 . 3 23 53 25 Largest 2 | 2 2 2 2 2 . 2 2 2 2 2 . 2 2 1 . . . 1 1 . 1 1 2 1 Hottest 210 | 40 65 90 90 46 . 46 81 113 64 97 . 59 66 46 . . . 90 90 . 200 90 210 200 Shots Fired 1163 | 18 141 7 251 40 . 54 175 219 10 25 . 11 75 4 . . . 3 15 1 3 21 66 24 Gun 807 | 18 137 2 223 40 . 54 99 146 5 12 . 8 63 . . . . . . . . . . . Cannon 260 | . . . 21 . . . 71 70 . 2 . . . . . . . 3 5 1 3 9 56 19 Launcher 96 | . 4 5 7 . . . 5 3 5 11 . 3 12 4 . . . . 10 . . 12 10 5 Special . | . . . . . . . . . . . . . . . . . . . . . . . . . Kinetic 742 | 18 99 . 165 40 . 54 85 193 5 12 . 8 63 . . . . . . . . . . . Thermal 96 | . . . . . . . . . . . . . . . . . . 3 5 1 3 9 56 19 Explosive 96 | . 4 5 7 . . . 5 3 5 11 . 3 12 4 . . . . 10 . . 12 10 5 Electromagnetic 229 | . 38 2 79 . . . 85 23 . 2 . . . . . . . . . . . . . . Robot Hit Streak 22 | 3 11 2 18 6 . 17 11 22 3 4 . 4 11 . . . . 4 9 . . 19 8 7 Robot Miss Streak 8 | 5 6 2 6 3 . 3 8 4 1 2 . 1 2 . . . . . . . . 1 2 5 Penetration Max . | . . . . . . . . . . . . . . . . . . . . . . . . . Secondary Targets 8 | . 1 . 2 4 . . . 1 . . . . . . . . . . . . . . . . Max Gunslinging Chain 1 | . 1 . 1 1 . . . 1 . . . . . . . . . . . . . . . . Shots Hit Robots 1349 | 8 87 5 169 23 . 38 113 160 3 12 16 20 170 136 13 . . 51 85 5 18 155 48 14 Core Hits 817 | 2 50 18 95 15 . 16 66 86 13 27 10 12 70 69 7 . . 17 79 1 6 101 35 22 Critical Kills 3 | . . . . . . . . . . . . . . . . . . 1 . . . . 1 1 Critical Parts Destroyed 2 | . . . . 1 . . . 1 . . . . . . . . . . . . . . . . Critical Strikes 75 | . . 1 1 1 . . 1 5 . . 2 1 10 12 4 . . 4 8 2 2 17 3 1 Meltdown 3 | . . . . . . . . . . . . . . . . . . 1 . . . . 1 1 Destroy 2 | . . . . 1 . . . 1 . . . . . . . . . . . . . . . . Blast 2 | . . . . . . . . 2 . . . . . . . . . . . . . . . . Corrupt 3 | . . 1 1 . . . 1 . . . . . . . . . . . . . . . . . Sever 65 | . . . . . . . . 2 . . 2 1 10 12 4 . . 3 8 2 2 17 2 . Melee Attacks 787 | . . . . . . . . 10 . . 33 15 150 146 14 . . 51 96 10 59 178 25 . Impact . | . . . . . . . . . . . . . . . . . . . . . . . . . Slashing 787 | . . . . . . . . 10 . . 33 15 150 146 14 . . 51 96 10 59 178 25 . Piercing . | . . . . . . . . . . . . . . . . . . . . . . . . . Sneak Attacks 29 | . . . . . . . . 3 . . 1 . 9 8 1 . . . 2 . . 4 1 . Combat Hostiles 1 | . . . . . . . . . . . . . . . . . . . . . . 1 . . Follow-up Attacks . | . . . . . . . . . . . . . . . . . . . . . . . . . Damage Inflicted 69210 | 70 1595 650 3754 466 . 517 3515 4743 498 1322 770 793 8896 8572 749 . . 2594 7964 242 1004 10798 5109 4589 Guns 8494 | 70 1163 22 2282 380 . 506 1038 1768 24 138 . 83 1020 . . . . . . . . . . . Cannons 6313 | . . . 458 . . . 1291 1118 . 47 . . . . . . . 111 36 . . . 1853 1399 Explosions 20465 | . 425 626 990 . . . 1118 1364 472 1137 . 88 928 1195 . . . . 3729 . . 3188 2015 3190 Melee 33461 | . . . . . . . . 400 . . 770 622 6866 7377 749 . . 2483 4194 242 1004 7604 1150 . Ramming 477 | . 7 2 24 86 . 11 68 93 2 . . . 82 . . . . . 5 . . 6 91 . Kinetic 7983 | 70 721 . 1618 380 . 506 959 2464 24 138 . 83 1020 . . . . . . . . . . . Thermal 7248 | . 35 . 100 . . . 475 848 . . . . . . . . . 111 36 . . . 2496 3147 Explosive 16616 | . 390 626 890 . . . 643 516 472 1137 . 88 928 1195 . . . . 3729 . . 3188 1372 1442 Electromagnetic 3425 | . 442 22 1122 . . . 1370 422 . 47 . . . . . . . . . . . . . . Impact . | . . . . . . . . . . . . . . . . . . . . . . . . . Slashing 33461 | . . . . . . . . 400 . . 770 622 6866 7377 749 . . 2483 4194 242 1004 7604 1150 . Piercing . | . . . . . . . . . . . . . . . . . . . . . . . . . Highest Corruption 35 | . . . . . . . . 7 7 7 7 11 35 13 13 13 13 31 9 9 14 30 33 20 Average Corruption 9 | . . . . . . . . 4 7 7 7 7 23 7 13 13 13 20 4 9 13 8 10 13 Corruption Purged 8 | . . . . . . . . . . . . . 3 . . . . . 5 . . . . . Corruption Blocked . | . . . . . . . . . . . . . . . . . . . . . . . . . Effects 595 | . . . . . . . . 76 33 32 18 42 82 47 25 10 6 36 8 9 59 70 37 5 Message Errors 158 | . . . . . . . . 26 11 11 6 10 24 17 2 . 1 13 3 3 9 15 6 1 Matter Fused 135 | . . . . . . . . 19 5 7 1 9 19 7 12 2 4 8 . 1 12 17 10 2 Heat Flow Errors 74 | . . . . . . . . 10 6 7 3 3 6 4 2 2 . 4 1 1 8 12 5 . Energy Discharges 65 | . . . . . . . . 9 3 3 . 4 10 5 4 3 1 1 2 2 9 7 1 1 Parts Rejected 11 | . . . . . . . . 1 . . . . 4 1 . . . . 1 . . 2 2 . Parts Fused 12 | . . . . . . . . . . . . 1 1 3 1 . . 1 . . 1 1 3 . Data Loss (minor) 71 | . . . . . . . . 5 5 1 3 8 10 7 1 2 . 4 . . 13 10 2 . Data Loss (major) 29 | . . . . . . . . 3 1 . 3 4 3 1 1 1 . 4 1 . 3 2 2 . Misfires 9 | . . . . . . . . 1 2 1 . 2 1 . . . . . . 1 . . 1 . Alerts 17 | . . . . . . . . . . 1 2 . 3 1 1 . . 1 . 1 4 2 1 . Misdirections 7 | . . . . . . . . . . . . . 1 1 1 . . . . . . . 4 . Weapon Failures 7 | . . . . . . . . 2 . 1 . 1 . . . . . . . . . 2 . 1 Overload Shots . | . . . . . . . . . . . . . . . . . . . . . . . . . Overflow Damage 3978 | . 8 . 29 . . . 65 179 . 13 7 39 881 569 103 . . 88 364 23 . 562 399 649 Projectiles 510 | . . . . . . . . 13 . . . . . . . . . . 16 . . . 139 342 Explosions 1053 | . 8 . 29 . . . 65 126 . 13 . . 21 . . . . . 138 . . 138 208 307 Melee 2415 | . . . . . . . . 40 . . 7 39 860 569 103 . . 88 210 23 . 424 52 . Knockbacks 9 | . . . 1 1 . . . 6 . . . . 1 . . . . . . . . . . . Impact 6 | . . . 1 1 . . . 3 . . . . 1 . . . . . . . . . . . Kinetic 3 | . . . . . . . . 3 . . . . . . . . . . . . . . . . Secondary . | . . . . . . . . . . . . . . . . . . . . . . . . . Self-Inflicted Damage 1039 | . 31 27 71 . . . 75 69 . 157 . 56 210 63 . . . . . . . 126 . 154 Shots 32 | . 2 1 4 . . . 2 2 . 7 . 1 6 3 . . . . . . . 2 . 2 Rammed 35 | . 2 1 4 13 . 4 2 8 1 . . . . . . . . . . . . . . . Targets Rammed 56 | . 2 1 5 17 . 4 4 8 1 . . . 8 . . . . . 1 . . 1 4 . Kicked 14 | . . . . . . . . . . . . . 8 . . . . . 1 . . 1 4 . Crushed 7 | . . . 1 4 . . 2 . . . . . . . . . . . . . . . . . Highest Temperature 344 | . 97 39 344 . . 48 247 320 270 262 144 273 251 268 251 229 . 271 180 105 262 252 214 274 Average Temperature 71 | . 24 22 61 . . 23 67 83 88 80 63 98 63 107 120 114 . 104 72 54 101 101 59 75 Received Heat Transfer 3999 | . 396 . 525 . . 126 331 502 20 63 . 108 498 531 48 . . 288 276 . . 176 39 72 Effects 7 | . . . . . . . 1 2 . . . . . . . . . 3 . . 1 . . . Energy Bleed 3 | . . . . . . . 1 2 . . . . . . . . . . . . . . . . Interference 4 | . . . . . . . . . . . . . . . . . . 3 . . 1 . . . Siege Activations 1 | . . . . . . . . . . . . . . . . . . . . . 1 . . . Total Turns 18 | . . . . . . . . . . . . . . . . . . . . . 18 . . . Longest Duration 18 | . . . . . . . . . . . . . . . . . . . . . 18 . . . Robots Corrupted 1 | . . . . . . . 1 . . . . . . . . . . . . . . . . . Combat Hostiles 1 | . . . . . . . 1 . . . . . . . . . . . . . . . . . Parts Fried 19 | . . . 9 . . . 6 4 . . . . . . . . . . . . . . . . Impact Corruptions 3 | . . . . . . . 1 . . . . . 1 . . . . . . . . . 1 . Robots Melted 3 | . . . . . . . . . . . . . . . . . . 1 . . . . 1 1 Combat Hostiles 2 | . . . . . . . . . . . . . . . . . . 1 . . . . . 1 Parts Melted 3 | . . . . . . . . . . . . . . . . . . . . . . . 2 1 Heat Transferred 5609 | . 50 . 150 . . . 550 650 . . . . . . . . . 111 37 . . . 1414 2647 Parts Sabotaged . | . . . . . . . . . . . . . . . . . . . . . . . . . Parts Stolen . | . . . . . . . . . . . . . . . . . . . . . . . . . Parts Stripped . | . . . . . . . . . . . . . . . . . . . . . . . . . Power Chain Reactions 10 | . 1 . 2 . . . 6 1 . . . . . . . . . . . . . . . . Missiles Intercepted . | . . . . . . . . . . . . . . . . . . . . . . . . . Alert | -11 -10 -10 -9 -9 -9 -8 -8 -7 -7 -7 -7 -6 -6 -5 -5 -5 -5 -4 -4 -4 -4 -3 -2 -1 ------- Run | Jun Mat Min Mat Min Exi Min Mat Fac Low Low Dat Pro Fac Fac Upp Upp Zhi Pro Fac Arm Lab Res Res Acc Peak Influence 1165 | 5 358 105 796 550 . 65 506 487 . . . . 499 1029 . . . . 1117 548 . 778 728 1165 Initial 490 | . 3 66 . 310 . . . 218 . . . . . 244 . . . . . 490 . . 432 436 Average 268 | . 230 41 301 314 . 8 240 178 . . . . 144 472 . . . . 439 503 . 262 425 811 Maximum Alert Level 4 | . 1 . 3 2 . . 2 2 . . . . 2 3 . . . . 4 2 . 3 3 4 Low Security (%) 41 | 100 24 100 28 13 . 100 31 64 . . . . 73 6 . . . . 26 . . 53 1 . Level 1 35 | . 75 . 50 65 . . 63 22 . . . . 14 23 . . . . 37 . . 23 40 . Level 2 18 | . . . 18 21 . . 5 13 . . . . 11 57 . . . . 7 100 . 16 47 23 Level 3 4 | . . . 2 . . . . . . . . . . 12 . . . . 27 . . 5 10 57 Level 4 . | . . . . . . . . . . . . . . . . . . . 1 . . . . 18 Level 5 . | . . . . . . . . . . . . . . . . . . . . . . . . . High Security . | . . . . . . . . . . . . . . . . . . . . . . . . . Max Security . | . . . . . . . . . . . . . . . . . . . . . . . . . Sterilizations 1 | . . . 1 . . . . . . . . . . . . . . . . . . . . . Squads Dispatched 119 | . 6 . 8 . . . 7 10 . 1 . 2 27 11 . . . 1 13 . . 19 11 3 Investigation 36 | . 3 . 7 . . . 1 6 . . . 2 8 2 . . . . 1 . . 4 2 . Extermination 20 | . . . . . . . . 3 . . . . 6 3 . . . . 2 . . 3 2 1 Reinforcement 19 | . 3 . . . . . 4 1 . . . . 3 1 . . . . 4 . . 2 . 1 Assault 10 | . . . 1 . . . 1 . . 1 . . . 3 . . . 1 1 . . 2 . . Garrison 4 | . . . . . . . 1 . . . . . . . . . . . 2 . . . . 1 Intercept 30 | . . . . . . . . . . . . . 10 2 . . . . 3 . . 8 7 . Searches Triggered . | . . . . . . . . . . . . . . . . . . . . . . . . . Construction Impeded 5 | . . . . . . . 1 . . . . . . . . . . . 3 . . . . 1 Haulers Reinforced 2 | . . . . . . . . . . . . . . . . . . . 1 . . 1 . . Active Scanning Responses . | . . . . . . . . . . . . . . . . . . . . . . . . . Cargo Convoy Interrupts 1 | . . . . . . . . . . . . . . . . . . . . . . 1 . . Stealth | -11 -10 -10 -9 -9 -9 -8 -8 -7 -7 -7 -7 -6 -6 -5 -5 -5 -5 -4 -4 -4 -4 -3 -2 -1 --------- Run | Jun Mat Min Mat Min Exi Min Mat Fac Low Low Dat Pro Fac Fac Upp Upp Zhi Pro Fac Arm Lab Res Res Acc Distress Signals 19 | . 1 1 2 . . . 2 1 . . . 1 2 1 . . . . 3 1 . 2 2 . Communications Jammed 155 | . . . . . . . . . . . . . . . . . . . . . . . 134 21 Distress Signals 153 | . . . . . . . . . . . . . . . . . . . . . . . 134 19 Times Spotted 634 | . 27 9 76 21 . 6 49 47 5 17 3 8 63 71 6 . . 16 55 9 1 76 53 16 Peak Tracking Total 12 | . 7 8 5 4 . 3 5 4 4 12 2 4 6 10 3 . . 6 11 5 1 8 8 5 Tactical Retreats 51 | . . . 5 8 . 1 2 1 . 2 . 1 5 12 . . . 2 1 . . 7 4 . Traps | -11 -10 -10 -9 -9 -9 -8 -8 -7 -7 -7 -7 -6 -6 -5 -5 -5 -5 -4 -4 -4 -4 -3 -2 -1 ------- Run | Jun Mat Min Mat Min Exi Min Mat Fac Low Low Dat Pro Fac Fac Upp Upp Zhi Pro Fac Arm Lab Res Res Acc Traps Triggered 20 | . 1 . . . . . . 7 . . . . 4 4 . . . . 1 . . 1 2 . Indirectly . | . . . . . . . . . . . . . . . . . . . . . . . . . Trap Hack Attempts . | . . . . . . . . . . . . . . . . . . . . . . . . . Triggered . | . . . . . . . . . . . . . . . . . . . . . . . . . Disarmed . | . . . . . . . . . . . . . . . . . . . . . . . . . Reprogrammed 8 | . . . 3 . . . . 5 . . . . . . . . . . . . . . . . Reused 7 | . . . 2 . . . . 1 . . 2 . . 2 . . . . . . . . . . Traps Extracted 6 | . . . . . . . . 4 . . 2 . . . . . . . . . . . . . Installed 6 | . . . . . . . . . . . 4 . . 2 . . . . . . . . . . Triggered 7 | . . . 2 . . . . 1 . . . . . 4 . . . . . . . . . . Most Traps Carried 4 | . . . . . . . . 4 4 4 4 2 2 2 . . . . . . . . . . Machines | -11 -10 -10 -9 -9 -9 -8 -8 -7 -7 -7 -7 -6 -6 -5 -5 -5 -5 -4 -4 -4 -4 -3 -2 -1 ---------- Run | Jun Mat Min Mat Min Exi Min Mat Fac Low Low Dat Pro Fac Fac Upp Upp Zhi Pro Fac Arm Lab Res Res Acc Machines Disabled 50 | . 2 . 2 . . . 5 9 . . . 1 2 . . . . . 10 1 3 3 5 7 Max in Single Turn 8 | . 1 . 1 . . . 2 8 . . . 1 1 . . . . . 4 1 1 1 2 2 Garrison Access 10 | . . . . . . . 1 2 . . . . 1 2 . . . . 1 . . 2 1 . Machines Repaired . | . . . . . . . . . . . . . . . . . . . . . . . . . Machines Sabotaged . | . . . . . . . . . . . . . . . . . . . . . . . . . Overloaded Fab Kills . | . . . . . . . . . . . . . . . . . . . . . . . . . Hacking | -11 -10 -10 -9 -9 -9 -8 -8 -7 -7 -7 -7 -6 -6 -5 -5 -5 -5 -4 -4 -4 -4 -3 -2 -1 --------- Run | Jun Mat Min Mat Min Exi Min Mat Fac Low Low Dat Pro Fac Fac Upp Upp Zhi Pro Fac Arm Lab Res Res Acc Machines Accessed 131 | . 9 . 17 . 1 . 12 19 . 2 4 1 21 12 . . 4 . 5 . 3 13 7 1 Terminals 64 | . 6 . 12 . . . 8 13 . . . . 9 3 . . . . 1 . . 6 5 1 Fabricators 14 | . . . . . . . . 2 . . . . 6 2 . . . . 1 . . 3 . . Repair Stations 15 | . 1 . 1 . . . 2 1 . . . . 3 3 . . . . 2 . . 1 1 . Recycling Units 7 | . 2 . 2 . . . 1 . . . . 1 . 1 . . . . . . . . . . Scanalyzers 7 | . . . 2 . . . 1 . . . . . 2 1 . . . . . . . 1 . . Garrison Access 10 | . . . . . . . . 3 . . . . 1 2 . . . . 1 . . 2 1 . Total Hacks 451 | . 20 . 66 . 1 . 42 44 . 13 30 2 66 36 . . 13 . 23 . 24 44 25 2 Successful 307 | . 11 . 45 . 1 . 30 21 . 13 30 . 40 20 . . 13 . 18 . 24 31 10 . Failed 142 | . 8 . 21 . . . 12 22 . . . 2 26 16 . . . . 5 . . 13 15 2 Catastrophic 18 | . . . 2 . . . 1 3 . . . . 4 3 . . . . 2 . . . 2 1 Database Lockouts 2 | . 1 . . . . . . 1 . . . . . . . . . . . . . . . . Manual 140 | . 14 . 44 . 1 . 20 13 . . 1 . 18 3 . . . . 2 . 1 14 9 . Terminals 191 | . 14 . 47 . . . 22 32 . . . . 23 7 . . . . 7 . . 16 21 2 Fabricators 49 | . . . . . . . . 5 . . . . 14 8 . . . . 2 . . 20 . . Repair Stations 71 | . 4 . 10 . . . 9 2 . . . . 14 12 . . . . 13 . . 4 3 . Recycling Units 10 | . 2 . 2 . . . 1 . . . . 2 . 3 . . . . . . . . . . Scanalyzers 30 | . . . 7 . . . 10 . . . . . 7 4 . . . . . . . 2 . . Garrison Access 19 | . . . . . . . . 5 . . . . 8 2 . . . . 1 . . 2 1 . Terminal Hacks 143 | . 3 . 18 . 1 . 9 12 . 13 30 . 6 1 . . 13 . 1 . 24 6 6 . Record 51 | . . . . . . . . . . 12 11 . . . . . 5 . . . 23 . . . Part Schematic 18 | . . . . . . . . 1 . . 10 . 1 . . . 4 . . . . 2 . . Robot Schematic 6 | . . . . . . . . . . . 6 . . . . . . . . . . . . . Robot Analysis 7 | . 1 . 6 . . . . . . . . . . . . . . . . . . . . . Prototype ID Bank 8 | . . . 1 . . . . . . . 3 . . . . . 4 . . . . . . . Open Door 1 | . . . . . . . . . . 1 . . . . . . . . . . . . . . Level Access Points 1 | . . . . . . . . . . . . . . 1 . . . . . . . . . . Branch Access Points 2 | . . . . . . . . 1 . . . . 1 . . . . . . . . . . . Emergency Access Points 1 | . . . . . . . 1 . . . . . . . . . . . . . . . . . Machine Index 1 | . . . . . . . . . . . . . . . . . . . 1 . . . . . Terminal Index 3 | . . . 1 . . . 1 1 . . . . . . . . . . . . . . . . Fabricator Index 1 | . . . . . . . . 1 . . . . . . . . . . . . . . . . Garrison Index 2 | . . . . . . . 1 1 . . . . . . . . . . . . . . . . Alert Level 7 | . 1 . 2 . . . 1 1 . . . . . . . . . . . . . 1 1 . Unreport Threat 12 | . . . 2 . . . 2 2 . . . . . . . . . . . . . 2 4 . Locate Traps 8 | . . . 4 . . . 2 1 . . . . 1 . . . . . . . . . . . Reprogram Traps 2 | . . . 1 . . . . 1 . . . . . . . . . . . . . . . . Patrol Status 1 | . . . . . . . . . . . . . . . . . . . . . . 1 . . Recall Investigation 4 | . . . . . . . . 1 . . . . 2 . . . . . . . . . 1 . Recall Reinforcements 2 | . . . . . . . . 1 . . . . 1 . . . . . . . . . . . Hauler Manifests 3 | . 1 . 1 . . . 1 . . . . . . . . . . . . . . . . . EX-Prototype ID Bank 1 | . . . . . 1 . . . . . . . . . . . . . . . . . . . Release Object 1 | . . . . . . . . . . . . . . . . . . . . . 1 . . . Fabricator Hacks 36 | . . . . . . . . 3 . . . . 11 6 . . . . 2 . . 14 . . Network Status 1 | . . . . . . . . . . . . . 1 . . . . . . . . . . . Load Schematic 18 | . . . . . . . . 2 . . . . 5 3 . . . . 1 . . 7 . . Build 17 | . . . . . . . . 1 . . . . 5 3 . . . . 1 . . 7 . . Repair Station Hacks 51 | . 4 . 8 . . . 6 . . . . . 12 4 . . . . 13 . . 2 2 . Scan Component 25 | . 2 . 4 . . . 3 . . . . . 6 2 . . . . 6 . . 1 1 . Repair 25 | . 2 . 4 . . . 3 . . . . . 6 2 . . . . 6 . . 1 1 . Refit 1 | . . . . . . . . . . . . . . . . . . . 1 . . . . . Recycling Unit Hacks 2 | . . . . . . . . . . . . . . 2 . . . . . . . . . . Retrieve Components 2 | . . . . . . . . . . . . . . 2 . . . . . . . . . . Scanalyzer 24 | . . . 6 . . . 10 . . . . . 3 3 . . . . . . . 2 . . Insert Component 13 | . . . 3 . . . 5 . . . . . 3 1 . . . . . . . 1 . . Analyze 11 | . . . 3 . . . 5 . . . . . . 2 . . . . . . . 1 . . Garrison Access Hacks 9 | . . . . . . . . 2 . . . . 1 2 . . . . 1 . . 2 1 . Seal Access 9 | . . . . . . . . 2 . . . . 1 2 . . . . 1 . . 2 1 . Unauthorized Hacks 42 | . 4 . 13 . . . 5 4 . . . . 7 2 . . . . 1 . . 5 1 . Terminals 32 | . 2 . 10 . . . 4 4 . . . . 6 2 . . . . 1 . . 2 1 . Assimilate 5 | . . . 1 . . . . 1 . . . . 2 . . . . . . . . . 1 . Botnet 23 | . 1 . 8 . . . 3 3 . . . . 3 2 . . . . 1 . . 2 . . Operators 4 | . 1 . 1 . . . 1 . . . . . 1 . . . . . . . . . . . Fabricators 4 | . . . . . . . . . . . . . 1 . . . . . . . . 3 . . Prioritize 3 | . . . . . . . . . . . . . . . . . . . . . . 3 . . Recompile 1 | . . . . . . . . . . . . . 1 . . . . . . . . . . . Repair Stations . | . . . . . . . . . . . . . . . . . . . . . . . . . Recycling Units 5 | . 2 . 2 . . . 1 . . . . . . . . . . . . . . . . . Tunnel 5 | . 2 . 2 . . . 1 . . . . . . . . . . . . . . . . . Scanalyzers 1 | . . . 1 . . . . . . . . . . . . . . . . . . . . . Researchers 1 | . . . 1 . . . . . . . . . . . . . . . . . . . . . Garrison Access . | . . . . . . . . . . . . . . . . . . . . . . . . . Data Cores Recovered 3 | . . . . . . . . 1 . . . . 2 . . . . . . . . . . . Used . | . . . . . . . . . . . . . . . . . . . . . . . . . Hacking Detections 86 | . 5 . 12 . . . 9 16 . . . 1 15 9 . . . . 3 . . 10 5 1 Full Trace Events 27 | . 2 . 5 . . . . 5 . . . . 6 2 . . . . 1 . . 4 2 . Feedback Events 2 | . . . . . . . . 2 . . . . . . . . . . . . . . . . Corruption 2 | . . . . . . . . 2 . . . . . . . . . . . . . . . . Feedback Blocked . | . . . . . . . . . . . . . . . . . . . . . . . . . Robot Schematics Acquired 6 | . . . . . . . . . . . 6 . . . . . . . . . . . . . Robots Built . | . . . . . . . . . . . . . . . . . . . . . . . . . Authchips . | . . . . . . . . . . . . . . . . . . . . . . . . . Time . | . . . . . . . . . . . . . . . . . . . . . . . . . Total Robot Build Rating . | . . . . . . . . . . . . . . . . . . . . . . . . . Part Schematics Acquired 28 | . . . 3 . . . 5 1 . . 10 . 1 1 . . 4 . . . . 3 . . Parts Built 21 | . . . . . . . . 2 . . . . 5 4 . . . . 2 . . 8 . . Authchips 5 | . . . . . . . . . . . . . . 1 . . . . . . . 4 . . Time 991 | . . . . . . . . 42 . . . . 497 221 . . . . 42 . . 189 . . Total Part Build Rating 125 | . . . . . . . . 8 . . . . 25 24 . . . . 8 . . 60 . . Parts Repaired 25 | . 2 . 4 . . . 3 . . . . . 6 2 . . . . 6 . . 1 1 . Time 982 | . 52 . 122 . . . 102 . . . . . 312 56 . . . . 294 . . 24 20 . Parts Recycled . | . . . . . . . . . . . . . . . . . . . . . . . . . Recycled Matter . | . . . . . . . . . . . . . . . . . . . . . . . . . Retrieved Matter . | . . . . . . . . . . . . . . . . . . . . . . . . . Retrieved Components . | . . . . . . . . . . . . . . . . . . . . . . . . . Parts Scanalyzed 10 | . . . 3 . . . 5 . . . . . . 1 . . . . . . . 1 . . Part Schematics Acquired 10 | . . . 3 . . . 5 . . . . . . 1 . . . . . . . 1 . . Parts Damaged . | . . . . . . . . . . . . . . . . . . . . . . . . . Bothacking | -11 -10 -10 -9 -9 -9 -8 -8 -7 -7 -7 -7 -6 -6 -5 -5 -5 -5 -4 -4 -4 -4 -3 -2 -1 ------------ Run | Jun Mat Min Mat Min Exi Min Mat Fac Low Low Dat Pro Fac Fac Upp Upp Zhi Pro Fac Arm Lab Res Res Acc Used RIF Installer . | . . . . . . . . . . . . . . . . . . . . . . . . . Robots Hacked . | . . . . . . . . . . . . . . . . . . . . . . . . . Non-combat . | . . . . . . . . . . . . . . . . . . . . . . . . . Combat . | . . . . . . . . . . . . . . . . . . . . . . . . . Robot Hacks Applied . | . . . . . . . . . . . . . . . . . . . . . . . . . Relay Couplers Released 2 | . . . . . . . 2 . . . . . . . . . . . . . . . . . Machine Destruction 2 | . . . . . . . 2 . . . . . . . . . . . . . . . . . Fabnet Peak Effective % . | . . . . . . . . . . . . . . . . . . . . . . . . . Robots Rewired 14 | . . . . . . . . 1 . 2 . 11 . . . . . . . . . . . . Allies Hacked . | . . . . . . . . . . . . . . . . . . . . . . . . . Hacks Repelled . | . . . . . . . . . . . . . . . . . . . . . . . . . Allies | -11 -10 -10 -9 -9 -9 -8 -8 -7 -7 -7 -7 -6 -6 -5 -5 -5 -5 -4 -4 -4 -4 -3 -2 -1 -------- Run | Jun Mat Min Mat Min Exi Min Mat Fac Low Low Dat Pro Fac Fac Upp Upp Zhi Pro Fac Arm Lab Res Res Acc Total Allies 23 | . . 5 1 . . . . 1 . 2 . 11 2 . . . . . . . . . 1 . Largest Group 6 | . . 5 5 . . . . 1 . 2 1 6 6 . . . . . . . . . 1 . Highest-Rated Group 208 | . . 85 85 . . . . 12 . 32 16 208 208 . . . . . . . . . 40 . Highest-Rated Ally 46 | . . 31 31 . . . . 12 . 16 16 46 46 . . . . . . . . . 40 . Total Orders 33 | . . . . . . . . . . . . 1 . . . . . . 10 . . 3 19 . STAY 1 | . . . . . . . . . . . . 1 . . . . . . . . . . . . FOLLOW 2 | . . . . . . . . . . . . . . . . . . . 1 . . . 1 . RETURN 30 | . . . . . . . . . . . . . . . . . . . 9 . . 3 18 . Ally Attacks 414 | . . . 50 . . . . 4 . 9 . 6 34 . . . . . 111 . . 65 135 . Total Damage 6451 | . . . 459 . . . . 26 . 79 . . 446 . . . . . 1919 . . 1190 2332 . Kills 46 | . . . 6 . . . . . . . . . 2 . . . . . 13 . . 6 19 . Allies Corrupted . | . . . . . . . . . . . . . . . . . . . . . . . . . Allies Melted . | . . . . . . . . . . . . . . . . . . . . . . . . . Intel | -11 -10 -10 -9 -9 -9 -8 -8 -7 -7 -7 -7 -6 -6 -5 -5 -5 -5 -4 -4 -4 -4 -3 -2 -1 ------- Run | Jun Mat Min Mat Min Exi Min Mat Fac Low Low Dat Pro Fac Fac Upp Upp Zhi Pro Fac Arm Lab Res Res Acc Robot Analysis Total 138 | . 1 . 6 . . . . . . . 131 . . . . . . . . . . . . . Derelict Logs Recovered 10 | . . 3 . 1 . . . . 2 2 . . . . 1 . . 1 . . . . . . Drone Launches 64 | . . . . . . . . . . . . . 2 . . . . . 17 . . 9 36 . Drone Recoveries 56 | . . . . . . . . . . . . . . . . . . . 17 . . 5 34 . Exploration | -11 -10 -10 -9 -9 -9 -8 -8 -7 -7 -7 -7 -6 -6 -5 -5 -5 -5 -4 -4 -4 -4 -3 -2 -1 ------------- Run | Jun Mat Min Mat Min Exi Min Mat Fac Low Low Dat Pro Fac Fac Upp Upp Zhi Pro Fac Arm Lab Res Res Acc Turns Passed 38790 | 123 1688 832 5016 2271 520 1302 2897 4013 1126 1088 672 1463 3491 2443 663 297 211 873 1257 253 1542 2771 1585 393 Spaces Moved 18871 | 56 856 441 1487 902 217 491 1331 2186 691 621 347 629 2011 1217 379 185 128 416 508 150 694 1602 1078 248 Core 15 | 3 . . . . . . . . . . . . . . . . . . . . . . . 12 Treads 12954 | 53 856 441 1487 902 217 491 1331 2186 691 621 347 628 282 1217 379 185 128 252 . . 260 . . . Legs 5902 | . . . . . . . . . . . . 1 1729 . . . . 164 508 150 434 1602 1078 236 Wheels . | . . . . . . . . . . . . . . . . . . . . . . . . . Hover . | . . . . . . . . . . . . . . . . . . . . . . . . . Flight . | . . . . . . . . . . . . . . . . . . . . . . . . . Fastest Speed 50 | 50 160 160 240 240 240 240 155 156 160 160 160 120 120 160 160 160 160 160 120 120 120 111 113 50 Average Speed 170 | 154 160 160 288 240 240 240 181 158 160 160 160 197 129 160 160 160 160 172 120 146 193 118 115 116 Slowest Speed 320 | 160 160 160 320 240 240 240 238 163 160 160 160 240 190 160 160 160 160 260 190 190 250 190 120 120 Overloaded Moves . | . . . . . . . . . . . . . . . . . . . . . . . . . Propulsion Burnouts . | . . . . . . . . . . . . . . . . . . . . . . . . . Robots Hopped 1 | . . . . . . . . . . . . . . . . . . . . . . . 1 . Cave-ins Triggered 2 | . . . . . . . . . . . . . . . . . . 2 . . . . . . Teleports 1 | . . . . . . . . . . . . . . . . . . . . 1 . . . . Exploration Rate (%) 60 | 5 99 95 99 100 62 99 93 56 84 76 80 64 41 32 59 46 60 46 16 16 100 44 28 6 Regions Visited 24 Branch Regions 14 Pre-discovered Areas 33 | . 2 2 2 . . . 1 . . . 23 . . . . . 3 . . . . . . . Known Exits Taken 4 | . . . . . . . . 1 . . . 1 . . . . . 1 . . 1 . . . Unknown Exits Taken 20 | 1 1 1 1 1 1 1 1 . 1 1 1 . 1 1 1 1 1 . 1 1 . 1 1 . Scrap Searched 17 | . . . . 3 . 1 . . 3 3 . 1 . . 2 3 . 1 . . . . . . Spaces Dug 157 | . . . . . . . . 5 . 15 . . 47 8 1 . . 3 16 4 . 38 20 . Terrain Destroyed 1065 | . 24 52 70 . . . 36 58 58 95 . 12 90 38 1 . . 3 92 4 2 157 128 145 Melee 75 | . . . . . . . . 5 . . . . 11 8 1 . . 3 12 4 . 29 2 . Projectile 54 | . . . . . . . . 3 . . . . 1 . . . . . 4 . 1 9 29 7 AOE 936 | . 24 52 70 . . . 36 50 58 95 . 12 78 30 . . . . 76 . 1 119 97 138 Terrain Rammed . | . . . . . . . . . . . . . . . . . . . . . . . . . Walls Destroyed . | . . . . . . . . . . . . . . . . . . . . . . . . . Machines Disabled . | . . . . . . . . . . . . . . . . . . . . . . . . . Actions | -11 -10 -10 -9 -9 -9 -8 -8 -7 -7 -7 -7 -6 -6 -5 -5 -5 -5 -4 -4 -4 -4 -3 -2 -1 --------- Run | Jun Mat Min Mat Min Exi Min Mat Fac Low Low Dat Pro Fac Fac Upp Upp Zhi Pro Fac Arm Lab Res Res Acc Total 23868 | 73 1036 559 1945 946 217 557 1649 2495 701 686 454 831 2687 1627 428 187 136 530 1035 178 862 2396 1337 316 Wait 2464 | . 71 108 251 1 . 32 154 68 . 1 35 81 361 197 27 1 . 48 349 . 70 485 103 21 Move 18844 | 55 855 440 1486 901 216 490 1330 2185 690 620 346 628 2010 1216 378 184 127 415 507 149 693 1601 1075 247 Hop 1 | . . . . . . . . . . . . . . . . . . . . . . . 1 . Pick Up 177 | 2 10 1 12 1 1 . 19 17 . 1 7 3 24 16 2 1 3 . 9 5 9 18 16 . Fast Attach 121 | 7 3 . 9 . . . 6 9 . 1 . . 21 8 2 . 2 4 10 6 8 12 12 1 Attach 133 | . . 1 9 1 . 3 1 8 . . 3 1 18 17 . . . 5 16 3 5 22 7 13 Detach 66 | . . . 7 1 . . . 3 . . . . 6 7 . . . 1 9 . 4 14 7 7 Swap 204 | . 7 2 17 . . . 14 34 4 7 16 11 29 10 2 . . 2 13 1 3 17 14 1 Drop 166 | . 6 . 13 . . . 27 21 1 1 10 3 17 4 3 1 4 1 5 4 8 23 13 1 Fire 698 | 9 82 6 136 20 . 28 94 123 5 18 . 8 43 4 . . . 3 15 . 3 23 53 25 Melee 787 | . . . . . . . . 10 . . 33 15 150 146 14 . . 51 96 10 59 178 25 . Ram . | . . . . . . . . . . . . . . . . . . . . . . . . . Kick 14 | . . . . . . . . . . . . . 8 . . . . . 1 . . 1 4 . Crush 42 | . 2 1 5 17 . 4 4 8 1 . . . . . . . . . . . . . . . Escape Stasis 2 | . . . . . . . . . . . . . . . . . . . 2 . . . . . Rewire 131 | . . . . 4 . . . 9 . 37 . 81 . . . . . . . . . . . . Trap 6 | . . . . . . . . . . . 4 . . 2 . . . . . . . . . . Miscellaneous 12 | . . . . . . . . . . . . . . . . . . . 3 . . 2 7 . Route ------- -11/Junkyard -10/Materials (discovered 4 exits: *Mat x3 / [*Min]) -10/Mines (discovered 2 exits: *Mat x2) -9/Materials (discovered 7 exits: *Mat x3 / [*Min x2] / *Sto x2) -9/Mines (discovered 3 exits: *Mat x2 / *Exi) -9/Exiles (discovered 2 exits: [*Min x2]) -8/Mines (discovered 2 exits: *Mat x2) -8/Materials (discovered 2 exits: *Fac x2) -7/Factory (discovered 3 exits: *Fac / *Low x2) -7/Lower Caves -7/Lower Caves (discovered 2 exits: *Fac / *Dat) -7/Data Miner -6/Proximity Caves -6/Factory (discovered 3 exits: *Fac / *Low x2) -5/Factory (discovered 5 exits: *Fac x4 / [*Upp]) -5/Upper Caves -5/Upper Caves -5/Zhirov -4/Proximity Caves -4/Factory (discovered 3 exits: *Res x2 / [*Arm]) -4/Armory -4/Lab -3/Research -2/Research -1/Access To Fleet Rendezvous History --------- Turn | Location | Event 11 | -11/Junkyard | Discovered new exit (range 14) 124 | -11/Junkyard | Entered Materials 201 | -10/Materials | Central database locked down 311 | -10/Materials | Build established: Mutant 349 | -10/Materials | Discovered new exit (range 5) 481 | -10/Materials | Discovered new exit (range 15) 750 | -10/Materials | Repaired Lgt. Ion Engine 778 | -10/Materials | Repaired Lgt. Treads 877 | -10/Materials | Discovered new exit (range 6) 1037 | -10/Materials | Discovered new exit (range 15) 1812 | -10/Materials | Entered Mines 1820 | -10/Mines | Received a Rocket Launcher from a helpful Derelict 1835 | -10/Mines | Assembled infested the area 1854 | -10/Mines | Core integrity fell below 50% 1881 | -10/Mines | Destroyed 9 combat bots 2238 | -10/Mines | Learned location of Zion (-6) 2332 | -10/Mines | Discovered new exit (range 7) 2367 | -10/Mines | Discovered new exit (range 15) 2609 | -10/Mines | Assisted by bots powering up and referring to "LRC-V3" 2644 | -10/Mines | Entered Materials 2644 | -9/Materials | Accompanied by 5 allies 2644 | -9/Materials | Evolved 2 slots: Utility x2 2645 | -9/Materials | Identified exit to Storage 2649 | -9/Materials | Led the pair of lost Derelicts to an unsafe place 3551 | -9/Materials | Build established: Scavenger-Mutant 3769 | -9/Materials | Discovered new exit (range 9) 4181 | -9/Materials | Discovered exit to Storage (range 8) 4267 | -9/Materials | Build established: Mutant 4651 | -9/Materials | Discovered new exit (range 7) 4989 | -9/Materials | Discovered new exit (range 14) 5229 | -9/Materials | Discovered new exit (range 9) 5514 | -9/Materials | Build established: Scavenger-Mutant 5690 | -9/Materials | Repaired Med. Armor Plating 5718 | -9/Materials | Repaired Assault Rifle 5750 | -9/Materials | Repaired Hvy. Assault Rifle 5783 | -9/Materials | Repaired Imp. Treads 6800 | -9/Materials | Discovered new exit (range 6) 7044 | -9/Materials | First assault squad dispatched 7590 | -9/Materials | Build established: Mutant 7611 | -9/Materials | Sterilization system engaged 7611 | -9/Materials | Non-combat units ordered to evacuate 7660 | -9/Materials | Entered Mines 7682 | -9/Mines | Discovered new exit (range 7) 7741 | -9/Mines | Learned location of 1 exit from Proximity Caves 7872 | -9/Mines | Discovered new exit (range 10) 9922 | -9/Mines | Deemed a non-threat by the Exiles lab entrance 9922 | -9/Mines | Discovered new exit (range 5) 9931 | -9/Mines | Entered Exiles 9967 | -9/Exiles | Discovered new exit (range 15) 9996 | -9/Exiles | Met 8R-AWN 10030 | -9/Exiles | Met EX-HEX 10111 | -9/Exiles | Met EX-BIN 10140 | -9/Exiles | Aligned with FarCom system 10143 | -9/Exiles | Given EX-Vault access code 10198 | -9/Exiles | Opened EX-Vault 10219 | -9/Exiles | Found Longsword +1 10273 | -9/Exiles | Warned to stay clear of 0b10 Research branches 10296 | -9/Exiles | Exiles lab attacked by MAIN.C 10432 | -9/Exiles | Discovered new exit (range 10) 10451 | -9/Exiles | Left Exiles lab with Longsword +1 10451 | -9/Exiles | Entered Mines 10521 | -8/Mines | Discovered new exit (range 9) 11035 | -8/Mines | Build established: Scavenger-Mutant 11440 | -8/Mines | Discovered new exit (range 7) 11600 | -8/Mines | Core integrity fell below 50% 11753 | -8/Mines | Entered Materials 11753 | -8/Materials | Evolved 2 slots: Propulsion x1, Utility x1 12005 | -8/Materials | Repaired Shield Generator 12157 | -8/Materials | Build established: Mutant 12674 | -8/Materials | Destroyed 7 combat bots 13162 | -8/Materials | Discovered new exit (range 15) 13746 | -8/Materials | Repaired Lgt. EM Pulse Cannon 13786 | -8/Materials | Repaired Hvy. Armor Plating 13932 | -8/Materials | Garrison activated, responded to threat 14454 | -8/Materials | Discovered new exit (range 12) 14650 | -8/Materials | Entered Factory 14650 | -7/Factory | Evolved 2 slots: Propulsion x1, Utility x1 14863 | -7/Factory | Discovered new exit (range 6) 15223 | -7/Factory | Build established: Hacker-Mutant 16485 | -7/Factory | Discovered new exit (range 11) 17320 | -7/Factory | Central database locked down 17320 | -7/Factory | Identified exit to Lower Caves 17764 | -7/Factory | Fabricated Microactuators (x2) 18326 | -7/Factory | Build established: Mutant 18663 | -7/Factory | Entered Lower Caves 18898 | -7/Lower Caves | Learned Factory emergency access door positions 19083 | -7/Lower Caves | Learned Factory terminal intel 19185 | -7/Lower Caves | Spotted B-75 Beast 19736 | -7/Lower Caves | Discovered new exit (range 5) 19789 | -7/Lower Caves | Entered another Lower Caves area 19896 | -7/Lower Caves | Discovered new exit (range 13) 19898 | -7/Lower Caves | Learned location of 1 exit from Factory 20016 | -7/Lower Caves | Learned Armory trap positions 20016 | -7/Lower Caves | Learned Research emergency access door positions 20016 | -7/Lower Caves | Learned Extension emergency access door positions 20016 | -7/Lower Caves | Learned Armory stockpile data 20016 | -7/Lower Caves | Learned Factory garrison access intel 20016 | -7/Lower Caves | Learned Extension garrison access intel 20047 | -7/Lower Caves | Learned Factory garrison access intel 20089 | -7/Lower Caves | Encountered a Warlord checkpoint 20674 | -7/Lower Caves | Attracted the attention of an 0b10 outpost 20825 | -7/Lower Caves | Core integrity fell below 50% 20855 | -7/Lower Caves | Discovered new exit (range 11) 20877 | -7/Lower Caves | Entered Data Miner 20877 | -7/Data Miner | Accompanied by 1 ally 20877 | -7/Data Miner | Discovered new exit (range 6) 20908 | -7/Data Miner | Met Data Miner 21002 | -7/Data Miner | Learned location of Section 7 (-3) 21002 | -7/Data Miner | Acquired the access code to Warlord's prototype stash 21029 | -7/Data Miner | Received God Mode back door access code from Data Miner 21044 | -7/Data Miner | Destroyed Data Miner 21047 | -7/Data Miner | Found Prototype Hackware 21050 | -7/Data Miner | Interfaced with the Data Conduit 21384 | -7/Data Miner | Found Prototype Hackware 21504 | -7/Data Miner | Found Prototype Hackware 21549 | -7/Data Miner | Entered Proximity Caves 21550 | -6/Proximity Caves | Identified exit to Factory 21823 | -6/Proximity Caves | Attracted the attention of an 0b10 checkpoint 22230 | -6/Proximity Caves | Snuck into a huge 0b10 base via the rear entrance 22304 | -6/Proximity Caves | Derelicts attacked a huge 0b10 base 22534 | -6/Proximity Caves | Spotted B-75 Beast 23009 | -6/Proximity Caves | System corruption reached 10% 23012 | -6/Proximity Caves | Entered Factory 23012 | -6/Factory | Accompanied by 6 allies 23012 | -6/Factory | Evolved 2 slots: Utility x2 23013 | -6/Factory | Identified exit to Lower Caves 23015 | -6/Factory | Loaded intel: 297 machine locations 23016 | -6/Factory | Loaded intel: 26 terminal locations 23017 | -6/Factory | Loaded intel: 4 garrison access locations 23204 | -6/Factory | Fabricated Combat Drone Bay? 23255 | -6/Factory | Identified Quantum Router 23255 | -6/Factory | Identified System Mapper 23317 | -6/Factory | Identified Ghost Barrier 23423 | -6/Factory | Found Hvy. Reactive Plating 23573 | -6/Factory | Build established: Hacker-Mutant 23723 | -6/Factory | Intercept squad dispatched 23746 | -6/Factory | Spotted Tracker 23753 | -6/Factory | Destroyed Tracker 23813 | -6/Factory | Spotted Combat Programmer 23824 | -6/Factory | Destroyed Combat Programmer 24266 | -6/Factory | Repaired Enh. Flexi-carbon Leg 24356 | -6/Factory | Repaired Enh. Flexi-carbon Leg 24396 | -6/Factory | Repaired Missile Launcher 24567 | -6/Factory | Intercept squad dispatched 24596 | -6/Factory | Spotted Tracker 24611 | -6/Factory | Destroyed Tracker 24653 | -6/Factory | Spotted Combat Programmer 25097 | -6/Factory | Fabricated Exp. Weapon Shielding? 25170 | -6/Factory | System corruption reached 10% 25257 | -6/Factory | Fabricated Combat Drone Bay? 25303 | -6/Factory | Intercept squad dispatched 25313 | -6/Factory | Spotted Tracker 25313 | -6/Factory | Spotted Tracker 25335 | -6/Factory | Destroyed Tracker 25336 | -6/Factory | Spotted Combat Programmer 25346 | -6/Factory | Destroyed Tracker 25348 | -6/Factory | Spotted Combat Programmer 25374 | -6/Factory | Destroyed Combat Programmer 25384 | -6/Factory | Core integrity fell below 50% 25394 | -6/Factory | System corruption reached 30% 25424 | -6/Factory | Lost 12 parts (1p4n6u1w) 25549 | -6/Factory | Destroyed Combat Programmer 25844 | -6/Factory | Repaired Exp. Weapon Shielding 26000 | -6/Factory | Fabricated Microactuators? 26240 | -6/Factory | Repaired Lgt. Antimatter Reactor 26348 | -6/Factory | Repaired Flexi-carbon Leg 26382 | -6/Factory | Destroyed Combat Programmer 26487 | -6/Factory | Intercept squad dispatched 26499 | -6/Factory | Discovered new exit (range 3) 26500 | -6/Factory | Spotted Tracker 26501 | -6/Factory | Spotted Tracker 26503 | -6/Factory | Entered another Factory area 26503 | -5/Factory | Evolved 2 slots: Power x1, Utility x1 26504 | -5/Factory | Loaded intel: 268 machine locations 26505 | -5/Factory | Loaded intel: 4 garrison access locations 26627 | -5/Factory | Repaired Hvy. Treads 26672 | -5/Factory | Identified exit to Factory 27045 | -5/Factory | Fabricated Combat Drone Bay? 27502 | -5/Factory | Lost 4 parts (1p1n2u) 27809 | -5/Factory | Repaired Hvy. Treads 28003 | -5/Factory | First assault squad dispatched 28053 | -5/Factory | Intercept squad dispatched 28072 | -5/Factory | Spotted Tracker 28084 | -5/Factory | Destroyed Tracker 28126 | -5/Factory | Spotted Combat Programmer 28138 | -5/Factory | Destroyed Combat Programmer 28181 | -5/Factory | Discovered new exit (range 7) 28308 | -5/Factory | Fabricated Combat Drone Bay (x1) 28362 | -5/Factory | Fabricated Remote Force Field? 28561 | -5/Factory | System corruption reached 10% 28714 | -5/Factory | Destroyed 11 combat bots 28785 | -5/Factory | Build established: Mutant 28946 | -5/Factory | Entered Upper Caves 29050 | -5/Upper Caves | Attracted the attention of an 0b10 checkpoint 29154 | -5/Upper Caves | Learned 4 Factory zone layouts 29358 | -5/Upper Caves | Build established: Scavenger-Mutant 29582 | -5/Upper Caves | Discovered new exit (range 14) 29609 | -5/Upper Caves | Entered another Upper Caves area 29628 | -5/Upper Caves | Encountered a Warlord checkpoint 29886 | -5/Upper Caves | Discovered new exit (range 13) 29906 | -5/Upper Caves | Entered Zhirov 29906 | -5/Zhirov | Discovered new exit (range 3) 29935 | -5/Zhirov | Met Zhirov 29971 | -5/Zhirov | Found Alien Artifact 29971 | -5/Zhirov | Identified Integrated Reactor 29971 | -5/Zhirov | Installed Integrated Reactor, increased core energy generation (+10) 29995 | -5/Zhirov | Found Alien Artifact 30073 | -5/Zhirov | Zhirov requested help retrieving the SGEMP Prototype 30117 | -5/Zhirov | Entered Proximity Caves 30341 | -4/Proximity Caves | Attracted the attention of an 0b10 outpost 30628 | -4/Proximity Caves | Crushed by falling debris 30631 | -4/Proximity Caves | Crushed by falling debris 30631 | -4/Proximity Caves | System corruption reached 30% 30662 | -4/Proximity Caves | Lost 10 parts (2p2n6u) 30990 | -4/Proximity Caves | Entered Factory 30990 | -4/Factory | Evolved 2 slots: Propulsion x2 30991 | -4/Factory | Identified exit to Research 30992 | -4/Factory | Loaded intel: 303 machine locations 31122 | -4/Factory | Discovered exit to Research (range 19) 31253 | -4/Factory | Repaired Exp. Weapon Shielding 31424 | -4/Factory | Repaired Hcp. Storage Unit 31446 | -4/Factory | Build established: Hacker-Mutant 31489 | -4/Factory | Repaired Lgt. Antimatter Reactor 31542 | -4/Factory | Repaired Flexi-carbon Leg 31582 | -4/Factory | Repaired Carbon-fiber Leg 31622 | -4/Factory | Repaired Carbon-fiber Leg 31776 | -4/Factory | First assault squad dispatched 31872 | -4/Factory | Garrison activated, responded to threat 31962 | -4/Factory | Destroyed 15 combat bots 31989 | -4/Factory | Intercept squad dispatched 31999 | -4/Factory | Spotted Tracker 31999 | -4/Factory | Spotted Tracker 32002 | -4/Factory | Destroyed Tracker 32017 | -4/Factory | Destroyed Tracker 32022 | -4/Factory | Found Prototype Energy Gun 32022 | -4/Factory | Identified Immobilizer 32030 | -4/Factory | Spotted Combat Programmer 32031 | -4/Factory | Spotted Combat Programmer 32039 | -4/Factory | Garrison activated, responded to threat 32055 | -4/Factory | Destroyed Combat Programmer 32077 | -4/Factory | Destroyed Combat Programmer 32107 | -4/Factory | Lost 8 parts (2p4n2u) 32196 | -4/Factory | Fabricated Microactuators? 32229 | -4/Factory | Discovered new exit (range 13) 32247 | -4/Factory | Entered Armory 32248 | -4/Armory | Loaded intel: 47 trap records 32250 | -4/Armory | Loaded intel: 84 machine locations 32277 | -4/Armory | Lost 5 parts (1p3n1u) 32439 | -4/Armory | Identified Transdimensional Reconstructor 32439 | -4/Armory | Warped through subspace to slip node 32439 | -4/Armory | Discovered new exit (range 1) 32500 | -4/Armory | Entered Lab 32500 | -4/Lab | Discovered exit to Research (range 9) 32514 | -4/Lab | Hidden lab's door opened automatically 32514 | -4/Lab | Sensor layout match revealed 32515 | -4/Lab | Gained access to the hidden lab's interior 32572 | -4/Lab | Found Alien Artifact 32572 | -4/Lab | Identified Core Regenerator 32572 | -4/Lab | Used Core Regenerator, restored core integrity (+287) 32581 | -4/Lab | Found Alien Artifact 32581 | -4/Lab | Identified Integrated Dissipator 32581 | -4/Lab | Installed Integrated Dissipator, increased core heat dissipation (+20) 32614 | -4/Lab | Found Alien Artifact 32714 | -4/Lab | Decrypted terminal 32782 | -4/Lab | Detected by scanners 32791 | -4/Lab | Confronted by A5 32791 | -4/Lab | System corruption reached 10% 32811 | -4/Lab | Destroyed A5 32825 | -4/Lab | Found Exp. Hacking Suite 32919 | -4/Lab | Found Prototype Special Weapon 32919 | -4/Lab | Identified Gui. Remote Datajack 32954 | -4/Lab | Decrypted terminal 32954 | -4/Lab | Acquired modification code for an L2 power cell 32994 | -4/Lab | Found Prototype Protection 32994 | -4/Lab | Identified Exp. Powered Armor 33006 | -4/Lab | Found Prototype Hackware 33027 | -4/Lab | Found Prototype Energy Gun 33027 | -4/Lab | Identified Tachyon Dispersion Ray 33774 | -4/Lab | Found Prototype Energy Cannon 33774 | -4/Lab | Identified Potential Cannon 33903 | -4/Lab | Decrypted terminal 33908 | -4/Lab | Found Alien Artifact 33924 | -4/Lab | Identified LC Capacitor 33980 | -4/Lab | Found Transdimensional Reconstructor 34042 | -4/Lab | Entered Research 34042 | -3/Research | Evolved 2 slots: Utility x2 34044 | -3/Research | Loaded intel: 116 machine locations 34079 | -3/Research | Identified Deep Network Scanner 34407 | -3/Research | Build established: Wizard-Mutant 34752 | -3/Research | Cargo convoy interrupted 34863 | -3/Research | Discovered new exit (range 14) 34940 | -3/Research | Intercept squad dispatched 34945 | -3/Research | Spotted Tracker 34957 | -3/Research | Destroyed Tracker 34960 | -3/Research | Found Exp. Phase Shifter 34981 | -3/Research | Spotted Combat Programmer 34982 | -3/Research | Spotted B-86 Titan 35006 | -3/Research | Destroyed Combat Programmer 35009 | -3/Research | Found Prototype Device 35009 | -3/Research | Identified Exp. Focal Shield 35216 | -3/Research | Fabricated Assault Drone Bay? 35299 | -3/Research | Fabricated Assault Drone Bay? 35400 | -3/Research | Fabricated Assault Drone Bay (x1) 35575 | -3/Research | Spotted B-86 Titan 35626 | -3/Research | Intercept squad dispatched 35630 | -3/Research | Spotted Tracker 35631 | -3/Research | Spotted Tracker 35638 | -3/Research | Spotted Combat Programmer 35645 | -3/Research | Destroyed Tracker 35670 | -3/Research | Destroyed Combat Programmer 35705 | -3/Research | Spotted Combat Programmer 35729 | -3/Research | Destroyed Combat Programmer 35820 | -3/Research | System corruption reached 10% 35852 | -3/Research | Destroyed Tracker 36005 | -3/Research | Fabricated Centrium Leg (x1) 36029 | -3/Research | Fabricated Centrium Leg (x1) 36051 | -3/Research | Fabricated Nanoactuators (x2) 36195 | -3/Research | Fabricated Exp. Melee Analysis Suite (x1) 36589 | -3/Research | Intercept squad dispatched 36592 | -3/Research | Spotted Tracker 36592 | -3/Research | Spotted Tracker 36598 | -3/Research | Destroyed Tracker 36610 | -3/Research | Destroyed Tracker 36636 | -3/Research | Lost 6 parts (2p1n3u) 36662 | -3/Research | Spotted Combat Programmer 36662 | -3/Research | Spotted Combat Programmer 36671 | -3/Research | Destroyed Combat Programmer 36686 | -3/Research | Destroyed Combat Programmer 36687 | -3/Research | System corruption reached 30% 36726 | -3/Research | Repaired Centrium Leg 36792 | -3/Research | First assault squad dispatched 36813 | -3/Research | Entered another Research area 36813 | -2/Research | Evolved 2 slots: Utility x2 36814 | -2/Research | Loaded intel: 122 machine locations 37200 | -2/Research | Intercept squad dispatched 37224 | -2/Research | Spotted Tracker 37228 | -2/Research | Spotted Tracker 37232 | -2/Research | Destroyed Tracker 37241 | -2/Research | Allies destroyed Tracker 37241 | -2/Research | Spotted Combat Programmer 37256 | -2/Research | Destroyed Combat Programmer 37267 | -2/Research | Spotted Combat Programmer 37273 | -2/Research | Destroyed Combat Programmer 37352 | -2/Research | Found Prototype Launcher 37352 | -2/Research | Identified Hellfire Missile Launcher 37811 | -2/Research | Repaired Nanoactuators 38053 | -2/Research | Found Antimissile System 38085 | -2/Research | Discovered new exit (range 7) 38095 | -2/Research | Intercept squad dispatched 38123 | -2/Research | Spotted Tracker 38123 | -2/Research | Spotted Tracker 38123 | -2/Research | Spotted Tracker 38127 | -2/Research | Destroyed Tracker 38129 | -2/Research | Destroyed Tracker 38129 | -2/Research | Allies destroyed Tracker 38131 | -2/Research | Spotted Combat Programmer 38133 | -2/Research | Spotted Combat Programmer 38134 | -2/Research | Spotted Combat Programmer 38144 | -2/Research | System corruption reached 10% 38176 | -2/Research | Destroyed Combat Programmer 38180 | -2/Research | Destroyed Combat Programmer 38186 | -2/Research | Destroyed Combat Programmer 38201 | -2/Research | Lost 4 parts (1p1n1u1w) 38340 | -2/Research | Spotted B-90 Cyclops 38376 | -2/Research | System corruption reached 30% 38398 | -2/Research | Entered Access 38398 | -1/Access | Evolved 2 slots: Propulsion x2 38399 | -1/Access | Loaded intel: 118 machine locations 38717 | -1/Access | Garrison activated, responded to threat 38720 | -1/Access | System corruption reached 10% 38772 | -1/Access | Discovered new exit (range 4) 38786 | -1/Access | Identified Core Reset Matrix 38786 | -1/Access | Used Core Reset Matrix 38790 | -1/Access | Sensed 1 artifact in vicinity 38791 | *** | Heading to fleet! Last Messages --------------- 38784_ System corrupted: Matter fused (-7). 38784_ Dropped Adv. Weapon Cycler. 38784_ Penetrated by Slug. 38784_ Centrium Leg destroyed. 38785_ Acquired 158 matter. 38785_ K-01 Serf collects debris. 38786_ Acquired Alien Artifact. 38786_ Identified Core Reset Matrix. 38786_ Wiping memory... 38786_ CORE RESET 38786_ Penetrated by Slug. 38786_ Centrium Leg destroyed. 38786_ Slug penetrates Wall. 38787_ Slug penetrates Terminal. 38787_ Penetrated by Slug. 38789_ Adv. Transmission Jammer destroyed. 38789_ K-01 Serf collects debris. 38790_ Sensed an artifact in vicinity. 38790_ Slug penetrates Sealed Barrier. [Achievement: Home At Last?] Map ----- +----------------------------------------------------+ | ?????????????????????????????????????????????????? | | ?????????????????????????????????????????????????? | | ?????????????????????????????????????????????????? | | ?????????????????????????????????????????????????? | | ?????????????????????????????????????????????????? | | ?????????????????????????????????????????????????? | | ?????????????????????????????????????????????????? | | ?????????????????????????????????????????????????? | | ?????????????????????????????????????????????????? | | ?????????????????????????????????????????????????? | | ????????????????###################??????????????? | | ????????????????? ???????????????? | | ??????????????????? ????????????????? | | ????????????????????# k""#?????????????????? | | ????????????????????# ""#?????????????????? | | ????????????????????# % ! ""#?????????????????? | | ????????????????????# * * #?????????????????? | | ????????????????????# !] =! "#?????????????????? | | ????????????????????# h!== "#?????????????????? | | ????????????????????# ==p #?????????????????? | | ??????????w?????????""""""Y """?????????????????? | | ????????????????????# #?????????????????? | | ????????????????????# #?????????????????? | | ????????????????????# "" """ #?????????????????? | | ????????????????????# ?" " #?????????????????? | | ????????????????????#??" @" " #?????????????????? | | ???????????????????????" "" "? #?????????????????? | | ???????????????????????" "? #?????????????????? | | ???????????????????????""""""? #?????????????????? | | ???????????????????????????????#?????????????????? | | ?????????????????????????????????????????????????? | | ?????????????????????????????????????????????????? | | ?????????????????????????????????????????????????? | | ?????????????????????????????????????????????????? | | ?????????????????????????????????????????????????? | | ??????????????????????BB????BB???????????????????? | | ??????????????????????BB????BB???????????????????? | | ?????????????????????????????????????????????????? | | ?????????????????????????????????????????????????? | | ?????????????????????????????????????????????????? | | ?????????????????????????????????????????????????? | | ?????????????????????????????????????????????????? | | ?????????????????????????????????????????????????? | | ?????????????????????????????????????????????????? | | ?????????????????????????????????????????????????? | | ?????????????????????????????????????????????????? | | ?????????????????????????????????????????????????? | | ?????????????????????????????????????????????????? | | ?????????????????????????????????????????????????? | | ?????????????????????????????????????????????????? | +----------------------------------------------------+ Best States ------------- Heat Dissipation 72 Energy Generation 59 Energy Capacity 1030 Matter Stores 300 Matter Capacity 300 Sight Range 22 Robot Scan Range 18 Terrain Scan Density 10 Jamming Range 16 Armor Coverage 825 Resistance: KI 40 Utility Shielding 66 Weapon Shielding 90 Weapon Cycling 25 Melee Speed Boost 50 Phase Shifting 10 Evasion (%) 65 Targeting Accuracy 8 Melee Accuracy 12 Core Analysis 6 Recoil Reduction 4 Offensive Hacking 55 Defensive Hacking 25 Authchip Count 5 Trap Extractor Capacity 4 Item Schematics ----------------- None Robot Schematics ------------------ None Fabricated ------------ Microactuators | x2 | -7/Factory Combat Drone Bay | x1 | -6/Factory Exp. Weapon Shielding | x1 | -6/Factory Combat Drone Bay | x1 | -6/Factory Microactuators | x2 | -6/Factory Combat Drone Bay | x1 | -5/Factory Combat Drone Bay | x1 | -5/Factory | Authchip Remote Force Field | x2 | -5/Factory Microactuators | x2 | -4/Factory Assault Drone Bay | x1 | -3/Research | Authchip Assault Drone Bay | x1 | -3/Research | Authchip Assault Drone Bay | x1 | -3/Research Centrium Leg | x1 | -3/Research | Authchip Centrium Leg | x1 | -3/Research | Authchip Nanoactuators | x2 | -3/Research Exp. Melee Analysis Suite | x1 | -3/Research Alien Tech Used ----------------- Integrated Reactor Transdimensional Reconstructor Core Regenerator Integrated Dissipator LC Capacitor Core Reset Matrix Achievements -------------- Decrypted! Home At Last? Max Potential Challenges ------------ None Game ------ Seed LayeredPulseSabre Manual? 0 Play Time 03:52:48 Cumulative 215.1 hours Start 2024.02.16 @ 09:50:06 End 2024.02.17 @ 09:06:40 Sessions 7 Manual Loads 0 Difficulty Rogue Special Mode None Game No. 160 Rogue 160 Adventurer 0 Explorer 0 Win Type 2 Total 7 Types 4/0/1/1/0/0/0/1/0 Lore% 68 Gallery% 74 Achievement% 64 Wizard Run 0 Options --------- ASCII 0 Keyboard 1 Movement Numpad Keybinds 0 Fullscreen 2 Font 18/SmallcapsGlow Map View 76x50 Tactical HUD 1 Map Filters NONE Filters NONE Steam 1 RUN: 8cf5986a-d86a-41b8-baaf-8668898aef35